bitfinex/quotes_ETHUSD_20250605
["timestamp","ask_amount","ask_price","bid_price","bid_amount"]
[1749129748372,6.409,2625.2,2624.9,19.80959152]
[1749129748578,6.409,2625.1,2625.0,19.8095238]
[1749129748965,1.7796,2625.3,2625.1,19.80936668]
[1749129749151,6.409,2625.2,2625.0,19.80944989]
[1749129749351,0.22,2625.3,2625.1,3.80937869]
[1749129749647,6.409,2625.2,2625.1,3.80937869]
[1749129750583,0.22,2625.3,2625.1,3.80937869]
[1749129750584,0.22,2625.3,2625.2,19.80923358]
[1749129750789,6.629,2625.3,2625.2,19.80923358]
[1749129752464,6.409,2625.3,2625.2,19.80923358]
[1749129753909,6.409,2625.3,2625.2,16.0]
[1749129754275,1.5615,2625.2,2625.0,16.0]
[1749129754598,1.5615,2625.2,2624.8,21.53672928]
[1749129754992,3.61708749,2625.2,2623.3,7.83]
[1749129755194,1.5615,2624.8,2623.6,3.81154576]
[1749129755366,3.81016838,2624.6,2624.1,3.81081174]
[1749129755769,1.5615,2624.8,2623.9,4.96726623]
[1749129756002,6.408,2624.7,2624.3,3.81053995]
[1749129756201,10.21804181,2624.7,2624.2,19.81061466]
[1749129756500,1.5615,2624.8,2624.2,18.36214399]
[1749129756712,6.408,2624.6,2624.5,19.81024957]
[1749129757305,1.5615,2624.8,2624.6,19.81008839]
[1749129757519,1.5615,2624.8,2624.4,3.81030951]
[1749129757520,6.408,2624.7,2624.4,3.81030951]
[1749129757890,6.408,2624.7,2624.5,3.81015953]
[1749129758921,3.80952655,2625.0,2624.7,3.80995348]
[1749129758922,1.5638,2625.0,2624.7,3.80995348]
[1749129759236,6.408,2624.9,2624.6,3.81003349]
[1749129759400,6.408,2624.8,2624.7,3.80989592]
[1749129759775,6.408,2624.8,2624.5,3.81015011]
[1749129759776,6.408,2624.8,2624.6,3.81000425]
[1749129760175,6.408,2624.8,2624.5,3.81015011]
[1749129760176,6.408,2624.8,2624.5,19.81017494]
[1749129760411,6.408,2624.8,2624.5,1.727]
[1749129760577,6.408,2624.8,2624.5,17.727]
[1749129761818,6.408,2624.8,2624.6,3.81007405]
[1749129762433,6.408,2624.8,2624.6,16.0]
[1749129762634,6.408,2624.8,2624.6,19.81009523]
[1749129763130,6.408,2624.8,2624.5,1.727]
[1749129763337,10.21789291,2624.8,2624.5,1.727]
[1749129763573,6.408,2624.8,2624.5,17.727]
[1749129764429,6.408,2624.8,2624.5,21.5372071]
[1749129764634,6.408,2624.8,2624.6,3.81009837]
[1749129764864,6.408,2624.8,2624.7,3.80995923]
[1749129765248,0.22,2624.9,2624.8,16.0]
[1749129765452,0.22,2624.9,2624.8,3.80981408]
[1749129765768,6.627,2624.9,2624.8,19.80981408]
[1749129766269,0.22,2624.9,2624.8,19.80981408]
[1749129766468,6.627,2624.9,2624.8,19.80981408]
[1749129766978,6.627,2624.9,2624.8,16.0]
[1749129769140,6.626,2624.9,2624.8,16.0]
[1749129771481,11.86016293,2624.9,2624.8,16.0]
[1749129771842,8.050494,2624.9,2624.8,16.0]
[1749129774087,8.050494,2624.9,2624.3,4.96726623]
[1749129774088,5.4302102,2624.7,2623.6,0.37570637]
[1749129774253,3.81104747,2624.0,2623.6,0.37570637]
[1749129774446,3.81104747,2624.0,2623.5,3.81163368]
[1749129774447,6.406,2623.9,2623.7,3.81140109]
[1749129774651,6.406,2623.9,2623.8,16.0]
[1749129775186,6.406,2623.9,2623.8,3.8112661]
[1749129775753,6.406,2623.9,2623.8,19.8112661]
[1749129776219,1.6202,2624.2,2623.8,14.16376836]
[1749129776385,6.405,2624.1,2623.8,14.16376836]
[1749129776569,6.405,2624.0,2623.9,3.81110484]
[1749129776762,1.6202,2624.2,2623.9,3.81110484]
[1749129776763,1.6202,2624.2,2623.9,3.81099276]
[1749129776965,6.406,2624.1,2623.9,3.81099276]
[1749129777171,5.35063509,2624.6,2623.9,4.86128938]
[1749129777385,6.406,2624.5,2624.1,3.81080737]
[1749129777849,6.406,2624.5,2623.9,3.81105935]
[1749129777850,10.21626265,2624.5,2624.0,3.81088308]
[1749129778281,10.21631727,2624.5,2624.0,3.81088308]
[1749129779068,3.81043179,2624.4,2624.0,16.0]
[1749129779268,3.81043179,2624.4,2623.8,10.50248996]
[1749129779469,3.81043179,2624.4,2624.0,16.0]
[1749129779672,3.81043179,2624.4,2623.7,1.724]
[1749129779673,1.594,2624.3,2623.7,1.724]
[1749129780008,3.81107227,2624.0,2623.7,1.724]
[1749129780194,6.405,2623.9,2623.7,1.724]
[1749129781622,5.3377661,2623.8,2623.7,1.725]
[1749129781801,1.5265,2623.8,2623.7,1.725]
[1749129782003,1.5265,2623.8,2623.5,16.0]
[1749129782224,1.5265,2623.8,2623.3,0.38962323]
[1749129782225,3.81189162,2623.4,2623.3,0.38962323]
[1749129782367,3.81189162,2623.4,2623.0,3.81236523]
[1749129782368,6.405,2623.4,2623.0,3.81236523]
[1749129782708,6.405,2623.4,2623.2,5.53706391]
[1749129783128,6.405,2623.4,2623.2,1.725]
[1749129783422,6.405,2623.4,2623.3,1.725]
[1749129783567,9.000848,2623.4,2623.1,0.02]
[1749129783787,3.81213784,2623.2,2623.1,0.02]
[1749129783993,3.81206011,2623.3,2623.1,0.02]
[1749129784193,4.71214491,2623.3,2623.1,0.02]
[1749129785026,4.71211344,2623.3,2623.1,0.02]
[1749129785328,4.71214414,2623.3,2623.1,0.02]
[1749129785496,0.9000848,2623.3,2623.1,0.02]
[1749129785697,3.81213784,2623.2,2623.1,0.02]
[1749129785921,7.12635939,2623.2,2623.1,0.02]
[1749129786231,17.09242444,2623.2,2623.1,0.02]
[1749129786436,1.5084,2622.8,2622.1,0.02]
[1749129786608,1.5084,2622.2,2622.1,0.02]
[1749129786807,11.72799164,2622.2,2622.1,0.02]
[1749129787633,13.28213572,2622.2,2622.1,0.02]
[1749129788949,3.06254408,2622.2,2622.1,0.02]
[1749129789131,7.9144,2622.2,2622.1,0.02]
[1749129789313,11.72799164,2622.2,2622.1,0.02]
[1749129790103,1.5084,2622.2,2622.1,0.02]
[1749129790308,11.72899164,2622.2,2622.1,0.02]
[1749129791033,7.9154,2622.2,2622.1,0.02]
[1749129791457,11.72899164,2622.2,2622.1,0.02]
[1749129791652,7.9154,2622.2,2622.1,0.02]
[1749129791977,11.72899164,2622.2,2622.1,0.02]
[1749129792179,3.81410599,2621.9,2621.1,0.02]
[1749129792347,3.8145549,2621.6,2621.1,3.8351689]
[1749129792541,1.5749,2621.8,2621.1,0.02]
[1749129792740,6.408,2621.7,2621.1,0.02]
[1749129792940,1.5749,2621.8,2621.1,0.02]
[1749129792941,6.408,2621.6,2621.3,3.81483374]
[1749129793141,6.408,2621.6,2621.1,13.83513965]
[1749129793142,6.408,2621.6,2621.2,19.81504654]
[1749129793366,1.5749,2621.8,2621.2,3.814935]
[1749129793367,6.408,2621.5,2621.2,3.814935]
[1749129793577,6.408,2621.5,2621.1,1.746]
[1749129793785,6.408,2621.5,2621.2,3.81491204]
[1749129793946,6.408,2621.5,2621.1,5.56115257]
[1749129794141,10.22272372,2621.5,2621.1,0.02]
[1749129794343,7.43027237,2621.5,2621.1,5.56111229]
[1749129794542,7.43027237,2621.5,2621.1,0.02]
[1749129794543,6.408,2621.5,2621.1,0.02]
[1749129794780,6.409,2621.4,2621.3,16.0]
[1749129795092,6.409,2621.4,2621.3,19.814901]
[1749129795649,1.5349,2622.1,2621.3,19.814901]
[1749129795875,1.5349,2622.1,2621.7,3.81429428]
[1749129796090,6.409,2622.0,2621.9,3.81402799]
[1749129796245,6.409,2622.0,2621.4,3.81473668]
[1749129796246,6.409,2622.0,2621.6,16.0]
[1749129796452,6.409,2622.0,2621.9,3.81394004]
[1749129796697,6.409,2622.0,2621.7,3.81423457]
[1749129796698,6.409,2622.0,2621.7,3.81426126]
[1749129796995,6.409,2621.9,2621.7,3.81424556]
[1749129797289,6.409,2621.9,2621.8,3.81417346]
[1749129797471,3.81303732,2622.6,2621.9,3.81394868]
[1749129797679,1.539,2622.4,2621.9,3.8138857]
[1749129797866,6.409,2622.3,2621.9,3.81395823]
[1749129798577,10.22247097,2622.3,2621.8,3.81403021]
[1749129798787,6.409,2622.3,2621.9,3.81400976]
[1749129798998,11.80196812,2622.3,2621.8,3.81409281]
[1749129799405,6.409,2622.2,2621.8,3.81409281]
[1749129800121,6.409,2622.2,2621.9,3.81401599]
[1749129800274,6.409,2622.2,2621.9,3.81395069]
[1749129800469,1.759,2622.4,2621.9,3.81395069]
[1749129800790,6.409,2622.3,2622.0,3.81381358]
[1749129800991,6.409,2622.3,2622.1,3.81371492]
[1749129801204,6.409,2622.2,2622.1,3.81371492]
[1749129802190,0.22,2622.4,2622.3,3.81344621]
[1749129802390,6.409,2622.4,2622.0,3.81388253]
[1749129802593,6.409,2622.4,2622.1,3.81373708]
[1749129802990,6.409,2622.4,2622.2,3.81355797]
[1749129803312,6.409,2622.4,2622.1,19.81367372]
[1749129803636,6.409,2622.4,2622.1,3.81363196]
[1749129803934,6.409,2622.4,2622.2,3.81357509]
[1749129804704,6.409,2622.4,2622.0,3.8138506]
[1749129804705,6.409,2622.4,2622.1,3.81373416]
[1749129804888,6.409,2622.4,2622.3,3.81344621]
[1749129805933,1.763,2622.7,2622.2,3.81358043]
[1749129805934,1.543,2622.7,2622.4,16.0]
[1749129806086,1.7866,2623.0,2622.6,3.81300999]
[1749129806286,6.409,2622.9,2622.6,3.81300999]
[1749129806538,6.409,2622.9,2622.7,3.81280046]
[1749129806876,1.6022,2623.4,2623.0,3.81229474]
[1749129807074,6.94939423,2623.3,2622.9,3.81249619]
[1749129807231,6.94939423,2623.3,2623.0,3.81240039]
[1749129807431,6.408,2623.2,2623.1,3.81223281]
[1749129808745,1.6117,2623.6,2623.1,3.81228317]
[1749129808952,6.408,2623.5,2623.3,3.81197068]
[1749129809387,6.408,2623.4,2623.2,3.81206515]
[1749129809551,6.408,2623.3,2623.2,3.81206515]
[1749129809740,6.407,2623.3,2623.2,3.81206924]
[1749129810078,6.407,2623.3,2623.0,16.0]
[1749129810280,1.6117,2623.6,2623.2,3.81213423]
[1749129810483,3.81193744,2623.4,2622.9,1.723]
[1749129810644,3.81201121,2623.3,2622.9,17.723]
[1749129811043,3.81226471,2623.2,2622.5,3.85314361]
[1749129811239,5.46899923,2623.0,2622.4,1.723]
[1749129811598,5.46899923,2623.0,2622.5,3.81305694]
[1749129811774,1.56882971,2622.9,2622.6,16.0]
[1749129812098,5.38141949,2622.9,2622.4,21.53619751]
[1749129812297,1.56882971,2622.9,2622.6,16.0]
[1749129812436,5.38148313,2622.9,2622.4,3.813279]
[1749129812653,1.56882971,2622.9,2622.3,5.53638722]
[1749129812840,0.70378511,2622.8,2622.4,3.81322999]
[1749129813177,6.407,2622.7,2622.4,3.81322999]
[1749129814661,6.407,2622.7,2622.5,3.81310885]
[1749129814838,6.407,2622.7,2622.6,3.81300999]
[1749129815868,1.6565,2623.0,2622.5,3.81311121]
[1749129816058,6.407,2622.9,2622.5,3.81311121]
[1749129816378,6.407,2622.9,2622.6,3.81291069]
[1749129818547,6.406,2622.8,2622.3,1.723]
[1749129818741,6.406,2622.8,2622.6,3.81287561]
[1749129819277,6.406,2622.8,2622.5,3.81311105]
[1749129819278,6.406,2622.8,2622.5,3.81308493]
[1749129819994,7.59349354,2622.8,2622.4,17.723]
[1749129820199,7.59349354,2622.8,2622.4,21.53626856]
[1749129820692,7.59349354,2622.8,2622.5,3.81314352]
[1749129821374,7.59349354,2622.8,2622.4,19.81323364]
[1749129821746,7.59349354,2622.8,2622.5,3.8131517]
[1749129822585,6.406,2622.8,2622.6,3.81290465]
[1749129823083,1.6565,2623.0,2622.8,3.8126526]
[1749129823281,6.406,2622.9,2622.8,3.8126526]
[1749129823880,6.406,2622.9,2622.7,3.81281453]
[1749129824751,6.406,2622.9,2622.7,3.81279626]
[1749129824952,6.406,2622.9,2622.5,3.81315538]
[1749129825155,6.406,2622.9,2622.7,3.81280564]
[1749129825554,6.406,2622.9,2622.5,3.81301753]
[1749129825752,6.406,2622.9,2622.7,3.81277533]
[1749129826100,1.6565,2623.0,2622.5,3.81311509]
[1749129826302,1.6565,2623.0,2622.3,5.53643294]
[1749129826477,1.6565,2623.0,2622.7,3.81279569]
[1749129826478,6.405,2622.9,2622.7,3.81279569]
[1749129826666,1.8765,2623.0,2622.4,14.170914]
[1749129826974,6.405,2622.9,2622.5,5.53511035]
[1749129827148,6.405,2622.9,2622.6,3.81291673]
[1749129827853,6.405,2622.9,2622.6,3.81300481]
[1749129828077,7.61439923,2622.9,2622.3,3.81335764]
[1749129828394,11.42707011,2622.9,2622.4,3.81323899]
[1749129828769,11.42707011,2622.9,2622.5,3.81314933]
[1749129828997,11.42707011,2622.9,2622.4,3.81321754]
[1749129829273,11.42707011,2622.9,2622.5,3.81314904]
[1749129829462,11.42707011,2622.9,2622.1,0.04]
[1749129829463,1.55035701,2622.8,2622.2,2.277853]
[1749129829652,1.55035701,2622.8,2622.5,3.81305634]
[1749129829859,1.33035701,2622.8,2622.5,3.81305634]
[1749129830189,1.528,2622.6,2622.2,16.0]
[1749129830489,6.405,2622.5,2622.2,16.0]
[1749129830856,6.405,2622.5,2622.2,19.81347396]
[1749129831272,6.405,2622.5,2622.3,3.81338036]
[1749129831866,6.405,2622.5,2621.9,3.85401132]
[1749129831867,7.1983,2622.5,2621.5,0.04]
[1749129832072,1.5005,2622.4,2621.9,3.81400712]
[1749129832282,1.5005,2622.4,2622.0,3.8138799]
[1749129832500,5.31381517,2622.4,2621.9,19.81395843]
[1749129832704,6.94633146,2622.4,2621.9,19.81395843]
[1749129832999,6.405,2622.3,2621.9,16.0]
[1749129833160,6.405,2622.3,2621.9,19.81394106]
[1749129833488,3.81361704,2622.2,2621.9,16.0]
[1749129833692,6.405,2622.3,2621.7,1.722]
[1749129833693,5.34272798,2622.0,2621.7,1.722]
[1749129833880,5.34272798,2622.0,2621.6,1.722]
[1749129833881,6.405,2621.9,2621.6,1.722]
[1749129834266,6.405,2621.9,2621.7,3.81428081]
[1749129835098,1.5941,2622.3,2621.9,3.81402799]
[1749129835269,1.5941,2622.3,2621.6,1.722]
[1749129835270,3.81295496,2622.7,2622.2,3.81359164]
[1749129835469,10.75871959,2622.6,2622.1,3.8136599]
[1749129835672,10.75877849,2622.6,2622.1,19.8136599]
[1749129836595,5.39352055,2622.5,2622.0,3.81382164]
[1749129836799,1.5803,2622.5,2622.1,16.0]
[1749129837000,1.23390429,2622.4,2622.1,16.0]
[1749129837562,1.6343,2622.1,2621.2,8.57289]
[1749129837761,9.41606505,2622.3,2621.3,6.53201574]
[1749129837762,3.81425567,2621.8,2621.3,6.53201574]
[1749129837962,3.81425562,2621.8,2621.3,6.57615906]
[1749129838175,3.8143347,2621.7,2621.4,10.0]
[1749129838375,6.405,2621.6,2621.4,26.0]
[1749129838581,6.405,2621.6,2621.4,3.81475513]
[1749129839201,6.405,2621.6,2621.2,17.722]
[1749129839381,3.81504654,2621.2,2621.1,0.02]
[1749129839669,11.85014654,2621.2,2621.1,0.02]
[1749129840097,8.0351,2621.2,2621.1,0.02]
[1749129841087,1.5856,2621.5,2621.1,3.83519209]
[1749129841289,1.5856,2621.5,2621.3,3.81478955]
[1749129841485,6.405,2621.4,2621.2,3.81496594]
[1749129841876,3.81425003,2621.8,2621.2,3.81496594]
[1749129841877,1.5127,2621.7,2621.4,3.81462095]
[1749129842287,17.23390429,2622.4,2621.5,5.130921]
[1749129842288,6.405,2621.8,2621.5,5.130921]
[1749129842601,6.405,2621.8,2621.3,3.85487279]
[1749129842602,7.9752,2621.8,2621.3,1.722]
[1749129842799,7.9752,2621.8,2621.6,16.0]
[1749129843000,7.9752,2621.8,2621.5,19.81459249]
[1749129843201,7.9752,2621.8,2621.5,16.0]
[1749129843369,7.9752,2621.8,2621.5,19.81456986]
[1749129843771,7.9752,2621.8,2621.4,1.722]
[1749129843968,3.81438825,2621.7,2621.1,0.02]
[1749129844197,2.36772,2621.8,2621.4,3.81466447]
[1749129844505,6.406,2621.6,2621.2,3.81495003]
[1749129844666,10.22047778,2621.6,2621.1,3.8351258]
[1749129844868,1.6567,2621.4,2621.1,0.02]
[1749129845084,1.6567,2621.4,2621.2,16.0]
[1749129845373,1.6567,2621.4,2621.2,19.81502252]
[1749129845573,1.6567,2621.4,2621.2,19.81504509]
[1749129845968,1.6567,2621.4,2621.1,16.02]
[1749129846776,1.6567,2621.4,2621.3,16.0]
[1749129847189,1.6567,2621.4,2621.3,19.814901]
[1749129847387,1.6567,2621.4,2621.3,16.0]
[1749129847797,1.5257,2621.7,2621.4,3.81469051]
[1749129848113,6.406,2621.6,2621.4,3.81462477]
[1749129848272,6.406,2621.6,2621.5,19.81460995]
[1749129848908,1.6323,2621.9,2621.5,16.0]
[1749129849213,7.78,2622.9,2621.2,0.04]
[1749129849214,1.6323,2622.4,2622.1,16.0]
[1749129849396,1.6323,2622.4,2622.0,3.81377056]
[1749129849571,6.406,2622.3,2622.0,3.81377056]
[1749129849767,1.6323,2622.4,2621.8,3.85404602]
[1749129849768,1.6323,2622.4,2622.2,3.81350864]
[1749129849981,6.406,2622.3,2622.2,3.81359164]
[1749129850499,1.6323,2622.7,2622.3,3.81337217]
[1749129850699,6.67748107,2622.6,2622.2,3.81351093]
[1749129851110,6.67748107,2622.6,2622.3,3.8134313]
[1749129852108,6.405,2622.5,2622.3,3.81336702]
[1749129852309,1.555,2621.8,2621.6,3.81436351]
[1749129852513,6.405,2621.7,2621.6,3.81436351]
[1749129852714,6.405,2621.7,2621.6,3.81439797]
[1749129853299,6.405,2621.7,2621.5,5.53652822]
[1749129853497,8.0098,2621.7,2621.1,0.06]
[1749129853682,8.0098,2621.7,2621.2,1.722]
[1749129853888,8.0098,2621.7,2621.3,3.81482096]
[1749129854410,9.5736054,2621.7,2621.1,3.83515283]
[1749129854714,13.38797461,2621.7,2621.2,17.722]
[1749129854887,13.38797461,2621.7,2621.2,21.53696796]
[1749129855088,3.81450222,2621.6,2621.2,1.722]
[1749129855401,9.5736054,2621.7,2621.1,0.02]
[1749129855715,9.5736054,2621.7,2621.1,3.83506898]
[1749129855716,0.95736054,2621.6,2621.1,3.83506898]
[1749129855873,0.95736054,2621.6,2621.1,3.83511059]
[1749129856072,0.95736054,2621.6,2621.2,3.81501345]
[1749129856290,0.95736054,2621.6,2621.3,3.81481767]
[1749129856491,6.406,2621.5,2621.4,3.81468926]
[1749129856692,6.406,2621.5,2621.4,3.81475547]
[1749129857424,1.5447,2621.9,2621.4,3.81475547]
[1749129857633,6.405,2621.8,2621.6,3.81445347]
[1749129857780,1.5447,2621.9,2621.4,0.04]
[1749129857986,1.721,2622.8,2621.7,3.81424742]
[1749129857987,6.406,2621.8,2621.7,3.81424742]
[1749129858718,6.406,2621.8,2621.7,19.81424742]
[1749129859689,6.406,2621.8,2621.7,16.0]
[1749129861033,0.6406,2621.8,2621.7,16.0]
[1749129861184,6.405,2621.8,2621.7,16.0]
[1749129861497,11.76237346,2621.8,2621.7,16.0]
[1749129861699,7.9482,2621.8,2621.0,0.04]
[1749129861936,3.81440315,2621.7,2621.2,21.53601247]
[1749129862132,11.76239398,2621.8,2621.3,3.81480327]
[1749129862337,1.1762394,2621.7,2621.3,3.81483896]
[1749129862488,4.99062956,2621.7,2621.2,21.53594852]
[1749129862682,3.81447892,2621.6,2621.1,3.83512047]
[1749129862905,3.81447892,2621.6,2621.2,19.81503328]
[1749129863305,4.9906417,2621.7,2621.2,19.81503328]
[1749129863537,1.67530641,2621.6,2621.4,16.0]
[1749129864316,11.76244207,2621.8,2621.4,16.0]
[1749129864521,3.81438944,2621.7,2621.2,19.81496173]
[1749129864730,3.81452145,2621.6,2621.2,16.0]
[1749129864921,0.22,2621.5,2621.2,3.81503791]
[1749129865120,6.405,2621.4,2621.1,21.55611765]
[1749129865349,7.9815,2621.4,2621.1,21.55608961]
[1749129865639,7.9815,2621.4,2621.2,3.81502476]
[1749129866201,7.9815,2621.4,2621.1,21.55610708]
[1749129866574,7.9815,2621.4,2621.1,17.741]
[1749129866743,7.9815,2621.4,2621.2,3.81504218]
[1749129866946,7.9815,2621.4,2621.3,16.0]
[1749129867248,7.9815,2621.4,2621.3,19.814901]
[1749129867421,6.405,2621.4,2621.3,19.814901]
[1749129870369,0.22,2621.5,2621.4,3.81475547]
[1749129870570,6.625,2621.5,2621.4,19.81475547]
[1749129870867,5.53441909,2622.4,2621.4,19.81475547]
[1749129870868,1.6236,2621.8,2621.5,3.81460831]
[1749129871067,6.405,2621.7,2621.6,3.81433768]
[1749129871420,6.405,2621.7,2621.3,16.04]
[1749129871722,6.405,2621.7,2621.4,3.81468996]
[1749129871960,6.405,2621.7,2621.5,3.81460391]
[1749129872167,3.81446444,2621.6,2621.3,16.0]
[1749129872461,7.6112726,2621.7,2621.4,16.0]
[1749129872646,7.6112726,2621.7,2621.4,19.81463615]
[1749129873964,7.6112726,2621.7,2621.4,16.0]
[1749129874671,3.81460407,2621.6,2621.1,16.02]
[1749129874869,1.6374,2621.5,2621.2,1.721]
[1749129875164,6.405,2621.4,2621.2,1.721]
[1749129875329,6.405,2621.4,2621.3,16.0]
[1749129875763,1.6374,2621.5,2621.3,16.0]
[1749129875918,6.405,2621.4,2621.3,19.81482839]
[1749129876119,1.5789,2621.7,2621.3,19.81482839]
[1749129876363,6.405,2621.6,2621.5,16.0]
[1749129876588,6.405,2621.6,2621.4,16.0]
[1749129877436,6.405,2621.6,2621.4,19.81475061]
[1749129877845,6.405,2621.6,2621.4,16.0]
[1749129878031,6.405,2621.6,2621.4,19.81473987]
[1749129878231,6.405,2621.6,2621.4,16.0]
[1749129879859,6.405,2621.6,2621.4,19.81475533]
[1749129880061,6.405,2621.6,2621.3,19.81483238]
[1749129880421,6.405,2621.6,2621.4,3.81472044]
[1749129881024,6.404,2621.5,2621.4,3.81472044]
[1749129881427,0.22,2621.8,2621.5,16.0]
[1749129881681,6.404,2621.7,2621.5,16.0]
[1749129882498,6.404,2621.6,2621.5,19.81459321]
[1749129883195,6.404,2621.6,2621.5,19.81460995]
[1749129883360,6.404,2621.6,2621.4,19.81475492]
[1749129883566,6.404,2621.6,2621.3,19.81477347]
[1749129883767,6.404,2621.6,2621.4,3.8147363]
[1749129884399,6.404,2621.6,2621.2,3.81494357]
[1749129884568,6.404,2621.6,2621.3,19.81488729]
[1749129884904,0.22,2622.3,2621.6,16.0]
[1749129885105,6.404,2622.2,2621.6,16.0]
[1749129885268,6.404,2622.2,2622.0,3.8138018]
[1749129885483,0.22,2622.3,2622.2,3.81359164]
[1749129885814,6.404,2622.3,2622.2,3.81359164]
[1749129886110,1.6351,2622.5,2622.1,3.81367773]
[1749129886633,6.404,2622.4,2622.1,3.81367773]
[1749129886793,6.404,2622.4,2622.2,3.81352376]
[1749129887516,6.404,2622.4,2622.3,3.81344621]
[1749129888318,7.20791,2622.4,2622.3,3.81344621]
[1749129888475,7.20791,2622.4,2622.2,3.8135139]
[1749129888682,7.20791,2622.4,2622.3,3.81344621]
[1749129892814,7.20791,2622.4,2622.2,3.81350391]
[1749129893691,1.7888,2622.3,2622.0,16.0]
[1749129893897,2.673101,2622.3,2622.0,19.81385904]
[1749129894096,2.673101,2622.3,2621.5,5.57460995]
[1749129894097,2.673101,2622.3,2622.1,3.81359468]
[1749129894401,2.673101,2622.3,2622.2,3.81359164]
[1749129894611,8.1908,2622.3,2622.2,3.81359164]
[1749129894810,8.1908,2622.3,2622.1,3.81365758]
[1749129896131,8.1908,2622.3,2622.2,3.81359164]
[1749129896414,8.1908,2622.3,2622.1,3.81371759]
[1749129896631,8.1908,2622.3,2622.1,3.81370711]
[1749129896830,9.84458317,2622.3,2622.1,3.81370711]
[1749129898123,4.53387216,2622.2,2621.9,3.81394818]
[1749129898329,3.44258317,2622.3,2622.1,3.81365858]
[1749129898504,6.401,2622.2,2622.1,3.81365858]
[1749129899306,6.401,2622.2,2622.0,3.81380466]
[1749129899489,6.401,2622.2,2622.0,16.0]
[1749129899689,6.401,2622.2,2622.1,3.81373708]
[1749129899927,6.401,2622.2,2622.0,19.81380537]
[1749129900129,6.401,2622.2,2622.0,16.0]
[1749129900290,5.41969618,2621.9,2621.4,3.81466156]
[1749129900489,0.22,2622.1,2621.2,3.81493148]
[1749129900490,5.42004414,2621.7,2621.2,3.81493148]
[1749129900700,4.53387216,2621.6,2621.2,3.8150272]
[1749129900929,4.53387216,2621.6,2621.3,3.81489139]
[1749129900930,6.401,2621.5,2621.3,3.81489139]
[1749129901429,0.22,2621.6,2621.5,3.81460995]
[1749129901627,6.621,2621.6,2621.5,3.81460995]
[1749129902553,6.621,2621.6,2621.4,3.81469995]
[1749129902901,6.621,2621.6,2621.5,3.81460995]
[1749129903105,6.621,2621.6,2621.4,3.81467622]
[1749129903341,6.621,2621.6,2621.3,16.0]
[1749129903544,6.621,2621.6,2621.4,3.81474274]
[1749129904251,6.621,2621.6,2621.5,3.81460995]
[1749129905061,6.401,2621.6,2621.5,3.81460995]
[1749129905424,0.22,2622.0,2621.9,3.81402799]
[1749129905624,6.401,2622.0,2621.9,3.81402799]
[1749129905853,1.5649,2622.3,2621.9,3.81402799]
[1749129906053,6.401,2622.0,2621.9,3.81402799]
[1749129906253,6.401,2622.0,2621.7,16.0]
[1749129906458,6.401,2622.0,2621.9,3.81402799]
[1749129906657,1.5649,2622.3,2622.2,3.81359164]
[1749129906955,1.5649,2622.3,2621.8,16.04]
[1749129906956,6.401,2622.3,2621.8,16.04]
[1749129907260,0.22,2622.4,2622.2,3.81359164]
[1749129907650,6.401,2622.3,2622.2,3.81359164]
[1749129907850,0.22,2622.4,2622.3,3.81344621]
[1749129908360,0.22,2622.7,2622.6,16.0]
[1749129908568,6.401,2622.7,2622.6,16.0]
[1749129908750,0.22,2622.8,2622.6,16.0]
[1749129908942,6.401,2622.7,2622.6,19.81300999]
[1749129909279,6.401,2622.7,2622.6,16.0]
[1749129909448,6.401,2622.7,2622.6,19.81300999]
[1749129909981,0.22,2623.1,2622.8,3.81270222]
[1749129910128,0.22,2623.1,2622.8,0.04]
[1749129910427,6.401,2623.0,2622.9,3.81250511]
[1749129911071,6.401,2623.0,2622.6,16.04]
[1749129911072,6.401,2623.0,2622.6,0.04]
[1749129911364,6.401,2623.0,2622.6,1.42531657]
[1749129911664,0.22,2623.1,2622.9,3.81243279]
[1749129911878,6.401,2623.0,2622.8,3.81265923]
[1749129912077,6.401,2623.0,2622.7,3.81283368]
[1749129912284,0.22,2623.3,2622.6,0.04]
[1749129912466,6.401,2623.2,2622.9,3.81256055]
[1749129912795,6.401,2623.2,2623.1,3.81228317]
[1749129912959,6.401,2623.2,2623.1,19.81228317]
[1749129913873,1.5433,2623.5,2623.3,3.81197851]
[1749129914274,0.22,2623.7,2623.1,0.04]
[1749129914442,0.22,2623.7,2623.6,3.81155663]
[1749129914777,0.22,2623.8,2623.7,3.81141136]
[1749129915178,6.619,2623.8,2623.5,16.0]
[1749129915379,7.2829,2623.8,2623.7,3.81141136]
[1749129915570,7.2829,2623.8,2623.6,16.0]
[1749129915765,7.2829,2623.8,2623.7,3.81141136]
[1749129915953,6.619,2623.8,2623.7,3.81141136]
[1749129916715,6.619,2623.8,2623.7,19.81141136]
[1749129916989,0.02,2623.9,2623.8,3.8112661]
[1749129917149,6.419,2623.9,2623.7,16.0]
[1749129917347,7.44199104,2623.9,2623.7,16.0]
[1749129917545,7.44199104,2623.9,2623.7,19.81140927]
[1749129918125,7.44199104,2623.9,2623.8,3.8112661]
[1749129918265,0.02,2623.9,2623.8,19.8512661]
[1749129918798,6.418,2623.9,2623.8,19.8512661]
[1749129918967,6.418,2623.9,2623.8,21.5682661]
[1749129920097,0.02,2623.9,2623.8,21.5682661]
[1749129920402,0.02,2623.9,2623.8,39.7427841]
[1749129920603,0.02,2623.9,2623.8,25.41050382]
[1749129921402,0.02,2623.9,2623.8,29.56492982]
[1749129921818,0.02,2623.9,2623.8,25.41050382]